Cogmind - Beta 14 @@@ ROGUE MODE // 2024.11.30 @ 00:56:12 Player: Sam Result: Destroyed by G-34 Mercenary with Small Laser Performance ------------- Evolutions (0) 0 Regions Visited (2) 400 Robots Destroyed (18) 90 Value Destroyed (474) 474 Prototype IDs (2) 40 Alien Tech Used (0) 0 Bonus (0) 0 TOTAL SCORE: 1004 Bonus ------- None Cogmind --------- Core Integrity 0/250 Matter 275/300 Energy 100/100 System Corruption 0% Temperature Cool (6) Movement Core (1450) Ox28 Location -10/Mines Parts ------- > --- POWER (1) -------- (None) > --- PROPULSION (2) --- (None) > --- UTILITY (2) ------ Huge Storage Unit Utility Shielding > --- WEAPON (2) ------- Light Assault Rifle Light Cannon > --- INVENTORY (25) --- Ion Engine Light Treads Wheel Heat Sink Small Storage Unit Medium Matter Pod (100) Targeting Computer Targeting Computer ECM Suite Light Armor Plating Assault Rifle Light Assault Rifle Light Assault Rifle Light Assault Rifle Light Cannon Grenade Launcher Peak State ------------ > --- POWER ------------ Light Nuclear Core > --- PROPULSION ------- Light Treads Light Treads > --- UTILITY ---------- Huge Storage Unit Utility Shielding > --- WEAPON ----------- Assault Rifle Light Assault Rifle > --- INVENTORY -------- Ion Engine Wheel Small Storage Unit Medium Matter Pod ECM Suite Light Armor Plating Light Assault Rifle Light Assault Rifle Light Cannon Grenade Launcher [Rating: 10] Favorites ----------- Power Ion Engine Engine Ion Engine Power Core Light Nuclear Core Propulsion Light Treads Treads Light Treads Utility Huge Storage Unit Storage Huge Storage Unit Protection Utility Shielding Weapon Assault Rifle Ballistic Gun Assault Rifle Ballistic Cannon Light Cannon Launcher Grenade Launcher Build | -11 -10 -10 ------- Run | Yrd Mat Min Slots Evolved . | . . . Power . | . . . Propulsion . | . . . Utility . | . . . Weapon . | . . . Parts Attached 15 | 6 7 2 Power 2 | 1 1 . Engine 1 | 1 . . Core 1 | . 1 . Reactor . | . . . Propulsion 2 | 2 . . Treads 2 | 2 . . Leg . | . . . Wheel . | . . . Hover . | . . . Flight . | . . . Utility 3 | 1 2 . Device . | . . . Storage 2 | 1 1 . Processor . | . . . Hackware . | . . . Protection 1 | . 1 . Artifact . | . . . Weapon 8 | 2 4 2 Energy Gun . | . . . Energy Cannon . | . . . Ballistic Gun 6 | 2 3 1 Ballistic Cannon 1 | . . 1 Launcher 1 | . 1 . Special Weapon . | . . . Impact Weapon . | . . . Slashing Weapon . | . . . Piercing Weapon . | . . . Special Melee Weapon . | . . . Unidentified Prototypes . | . . . Parts Lost 4 | . 1 3 Power 1 | . . 1 Propulsion 2 | . . 2 Utility . | . . . Weapon 1 | . 1 . Highest Loss Streak 2 | . 1 2 To Critical Strikes . | . . . Average Slot Usage (%) 93 | . 93 95 Engine 6 | . 10 . Core 5 | . 3 9 Treads 27 | . 28 27 Storage 17 | . 18 14 Protection 6 | . 2 14 Ballistic Gun 27 | . 27 27 Peak Build Rating 10 | 6 9 10 Average Rating 7 | 4 7 9 On Entrance 5 | . 6 9 Naked Turns . | . . . Heaviest Build 94 | 14 94 89 Greatest Support 40 | 40 40 40 Greatest Overweight (x) 4 | . 2 4 Average Overweight (x) 1 | . 1 2 Largest Inventory Capacity 25 | 8 25 25 Average Capacity 21 | 6 20 25 Most Carried 16 | 1 9 16 Average Carried 7 | . 4 14 Final Capacity 25 | 8 25 25 Final Carried 16 | 1 9 16 Class Distribution -------------------- 100% | Mutant Dominant Class ---------------- Mutant | -10/Materials Mutant | -10/Mines Resources | -11 -10 -10 ----------- Run | Yrd Mat Min Matter Collected 689 | 172 302 215 Remotely . | . . . Salvage Created 502 | . 423 79 Parts 32 | . 30 2 Haulers Intercepted . | . . . Recyclers Shooed . | . . . Parts Field Recycled . | . . . Retrieved Matter . | . . . Parts Self-Destructed . | . . . Prevented . | . . . Kills | -11 -10 -10 ------- Run | Yrd Mat Min Combat Hostiles Destroyed 17 | . 15 2 Guns 14 | . 12 2 AOE 3 | . 3 . Classes Destroyed 3 | . 3 . Worker 1 | . 1 . Swarmer 6 | . 6 . Grunt 11 | . 9 2 Best Kill Streak 6 | . 6 1 Combat Bots Only 5 | . 5 1 Max Kills in Single Turn 4 | . 4 1 Gunslinging . | . . . Exploded 3 | . 3 . Melee . | . . . Uniques/NPCs Destroyed . | . . . Combat | -11 -10 -10 -------- Run | Yrd Mat Min Hostile Shots Fired 104 | . 69 35 Missed 24 | . 15 9 Damage Taken 972 | . 604 368 Core 254 | . 140 114 Absorbed by Shields . | . . . Redirected to Shielding 3 | . 3 . Core Remaining (%) 100 | 100 . . Volleys Fired 49 | . 36 13 Largest 2 | . 2 2 Hottest 55 | . 50 55 Shots Fired 98 | . 72 26 Gun 91 | . 70 21 Cannon 5 | . . 5 Launcher 2 | . 2 . Special . | . . . Kinetic 96 | . 70 26 Thermal . | . . . Explosive 2 | . 2 . Electromagnetic . | . . . Robot Hit Streak 15 | . 15 8 Robot Miss Streak 2 | . 2 2 Penetration Max . | . . . Secondary Targets 1 | . 1 . Max Gunslinging Chain 1 | . 1 . Shots Hit Robots 64 | . 46 18 Core Hits 29 | . 24 5 Critical Kills . | . . . Critical Parts Destroyed 1 | . 1 . Critical Strikes 1 | . 1 . Destroy 1 | . 1 . Melee Attacks . | . . . Impact . | . . . Slashing . | . . . Piercing . | . . . Sneak Attacks . | . . . Combat Hostiles . | . . . Follow-up Attacks . | . . . Damage Inflicted 1186 | . 980 206 Guns 709 | . 556 153 Cannons 53 | . . 53 Explosions 407 | . 407 . Melee . | . . . Ramming 17 | . 17 . Kinetic 762 | . 556 206 Thermal . | . . . Explosive 407 | . 407 . Electromagnetic . | . . . Impact . | . . . Slashing . | . . . Piercing . | . . . Highest Corruption . | . . . Average Corruption . | . . . Corruption Purged . | . . . Corruption Blocked . | . . . Overload Shots . | . . . Overflow Damage 12 | . 12 . Projectiles . | . . . Explosions 12 | . 12 . Melee . | . . . Knockbacks 1 | . . 1 Impact . | . . . Kinetic 1 | . . 1 Secondary . | . . . Self-Inflicted Damage . | . . . Shots . | . . . Rammed 1 | . 1 . Targets Rammed 1 | . 1 . Kicked . | . . . Crushed . | . . . Highest Temperature 26 | . 21 26 Average Temperature 9 | . 6 12 Received Heat Transfer 501 | . 300 201 Siege Activations . | . . . Robots Corrupted . | . . . Combat Hostiles . | . . . Parts Fried . | . . . Impact Corruptions . | . . . Robots Melted . | . . . Combat Hostiles . | . . . Parts Melted . | . . . Heat Transferred . | . . . Parts Sabotaged . | . . . Parts Stolen . | . . . Parts Stripped . | . . . Power Chain Reactions . | . . . Alert | -11 -10 -10 ------- Run | Yrd Mat Min Peak Influence 234 | . 234 131 Initial 91 | . . 91 Average 64 | . 63 73 Maximum Alert Level 1 | . 1 . Low Security (%) 95 | 100 93 100 Level 1 4 | . 6 . Level 2 . | . . . Level 3 . | . . . Level 4 . | . . . Level 5 . | . . . High Security . | . . . Max Security . | . . . Squads Dispatched 3 | . 3 . Investigation 2 | . 2 . Extermination . | . . . Reinforcement 1 | . 1 . Assault . | . . . Garrison . | . . . Intercept . | . . . Searches Triggered . | . . . Construction Impeded . | . . . Haulers Reinforced . | . . . Active Scanning Responses . | . . . Cargo Convoy Interrupts . | . . . Stealth | -11 -10 -10 --------- Run | Yrd Mat Min Distress Signals 3 | . 3 . Communications Jammed . | . . . Distress Signals . | . . . Times Spotted 27 | . 22 5 Peak Tracking Total 7 | . 7 2 Tactical Retreats 2 | . 2 . Traps | -11 -10 -10 ------- Run | Yrd Mat Min Traps Triggered 2 | . 2 . Indirectly . | . . . Trap Hack Attempts . | . . . Triggered . | . . . Disarmed 4 | . 4 . Reprogrammed . | . . . Reused . | . . . Traps Extracted . | . . . Installed . | . . . Triggered . | . . . Machines | -11 -10 -10 ---------- Run | Yrd Mat Min Machines Disabled 2 | . 2 . Max in Single Turn 2 | . 2 . Machines Repaired . | . . . Machines Dismantled . | . . . Machines Sabotaged . | . . . Overloaded Fab Kills . | . . . Hacking | -11 -10 -10 --------- Run | Yrd Mat Min Machines Accessed 3 | . 3 . Terminals 3 | . 3 . Fabricators . | . . . Repair Stations . | . . . Recycling Units . | . . . Scanalyzers . | . . . Garrison Access . | . . . Total Hacks 7 | . 7 . Successful 5 | . 5 . Failed 2 | . 2 . Catastrophic . | . . . Database Lockouts . | . . . Manual . | . . . Terminals 7 | . 7 . Fabricators . | . . . Repair Stations . | . . . Recycling Units . | . . . Scanalyzers . | . . . Garrison Access . | . . . Terminal Hacks 5 | . 5 . Prototype ID Bank 1 | . 1 . Emergency Access Points 1 | . 1 . Alert Level 1 | . 1 . Locate Traps 1 | . 1 . Disarm Traps 1 | . 1 . Fabricator Hacks . | . . . Repair Station Hacks . | . . . Recycling Unit Hacks . | . . . Scanalyzer . | . . . Garrison Access Hacks . | . . . Unauthorized Hacks . | . . . Terminals . | . . . Fabricators . | . . . Repair Stations . | . . . Recycling Units . | . . . Scanalyzers . | . . . Garrison Access . | . . . Data Cores Recovered . | . . . Used . | . . . Hacking Detections 2 | . 2 . Full Trace Events . | . . . Feedback Events . | . . . Feedback Blocked . | . . . Robot Schematics Acquired . | . . . Robots Built . | . . . Authchips . | . . . Time . | . . . Total Robot Build Rating . | . . . Part Schematics Acquired . | . . . Parts Built . | . . . Authchips . | . . . Time . | . . . Total Part Build Rating . | . . . Parts Repaired . | . . . Time . | . . . Parts Recycled . | . . . Recycled Matter . | . . . Retrieved Matter . | . . . Retrieved Components . | . . . Parts Scanalyzed . | . . . Part Schematics Acquired . | . . . Parts Damaged . | . . . Bothacking | -11 -10 -10 ------------ Run | Yrd Mat Min Used RIF Installer . | . . . Robots Hacked . | . . . Non-combat . | . . . Combat . | . . . Robot Hacks Applied . | . . . Relay Couplers Released . | . . . Fabnet Peak Effective % . | . . . Robots Rewired . | . . . Allies Hacked . | . . . Hacks Repelled . | . . . Allies | -11 -10 -10 -------- Run | Yrd Mat Min Total Allies . | . . . Largest Group . | . . . Highest-Rated Group . | . . . Highest-Rated Ally . | . . . Total Orders . | . . . Ally Attacks . | . . . Total Damage . | . . . Kills . | . . . Allies Corrupted . | . . . Allies Melted . | . . . Intel | -11 -10 -10 ------- Run | Yrd Mat Min Robot Analysis Total . | . . . Derelict Logs Recovered 1 | . . 1 Drone Launches . | . . . Drone Recoveries . | . . . Exploration | -11 -10 -10 ------------- Run | Yrd Mat Min Turns Passed 1723 | 66 1139 518 Spaces Moved 579 | 38 395 146 Core 3 | 3 . . Treads 576 | 35 395 146 Legs . | . . . Wheels . | . . . Hover . | . . . Flight . | . . . Fastest Speed 50 | 50 160 320 Average Speed 262 | 151 251 322 Slowest Speed 480 | 160 320 480 Overloaded Moves . | . . . Propulsion Burnouts . | . . . Robots Hopped . | . . . Cave-ins Triggered . | . . . Exploration Rate (%) 32 | 5 53 40 Regions Visited 2 Branch Regions 1 Pre-discovered Areas 1 | . . 1 Known Exits Taken . | . . . Unknown Exits Taken 2 | 1 1 . Scrap Searched 3 | . . 3 Spaces Dug . | . . . Terrain Destroyed 8 | . 8 . Melee . | . . . Projectile . | . . . AOE 8 | . 8 . Terrain Rammed . | . . . Walls Destroyed . | . . . Machines Disabled . | . . . Actions | -11 -10 -10 --------- Run | Yrd Mat Min Total 681 | 44 468 169 Wait 25 | . 23 2 Move 577 | 37 394 146 Hop . | . . . Pick Up 13 | 1 6 6 Fast Attach 8 | 6 2 . Attach 1 | . 1 . Detach 1 | . 1 . Swap 6 | . 4 2 Drop . | . . . Fire 49 | . 36 13 Melee . | . . . Ram . | . . . Kick . | . . . Crush 1 | . 1 . Escape Stasis . | . . . Rewire . | . . . Trap . | . . . Miscellaneous . | . . . Route ------- -11/Scrapyard -10/Materials (discovered 2 exits: [*Mat] / [*Min]) -10/Mines History --------- Turn | Location | Event 17 | -11/Scrapyard | Discovered new exit (range 15) 67 | -11/Scrapyard | Entered Materials 315 | -10/Materials | Build established: Mutant 450 | -10/Materials | Discovered new exit (range 10) 1085 | -10/Materials | Discovered new exit (range 15) 1126 | -10/Materials | Core integrity fell below 50% 1206 | -10/Materials | Entered Mines 1219 | -10/Mines | Joined a pair of Derelicts in attacking an 0b10 outpost 1380 | -10/Mines | Learned location of Zion (-6) 1707 | -10/Mines | Core integrity fell below 20% 1724 | -10/Mines | Destroyed by G-34 Mercenary with Small Laser Last Messages --------------- Found Lgt. Assault Rifle. Found 55 Matter. Acquired 10 matter. Searching scrap... Found Signal Interpreter. Found Structural Scanner. Found 30 Matter. A derelict is hurriedly installing traps. G-47 Trooper destroyed. Acquired 16 matter. R-06 Scavenger collects Particle Gun. Lgt. Nuclear Core destroyed. G-34 Mercenary destroyed. K-01 Serf collects debris. R-06 Scavenger collects Aluminum Leg. K-01 Serf collects debris. Acquired 16 matter. K-01 Serf collects debris. G-47 Trooper knocked back. Lgt. Treads destroyed. Map ----- +----------------------------------------------------+ | ? #?# ### #??####????????????# #?????? | | #?# #?# #?## ##???######### ##????? | | ######?## ### ### ##### ! ##???? | | ????????## % % %! ##??? | | ?????????## #### ###### #??? | | ??????????## #### ##??# #??? | | ???????????####??## #### #???# ## #??? | | ??????????????????# ##??# #???######## #?# | | ??????????????????# #???# #??????????# ##?####### | | ??????????????????# #???# ########??## ##??????? | | ??????????????????# #???# ## #??# #??????? | | ??????????????????# #?### # ??# #??????? | | ??????????????????# #?? ??# ##?????? | | ??????????????????# ???? #??## ###### | | ??????????????????? ????###?# #???# | | ???????????????????#?????????# #???# | | ?????????????????????????????## #???## ## | | ??????????????????????????????# %###### # | | ???????????????????????######## ## # | | ???????????????????????# % ## # | | ???????????????????????# ^ #^ ##?# ## | | ???????????????????????# #### # # #???# #? | | ???????????????????????# #??# #^#???? ##? | | ???????????????????????# #??## ## # #?????#?? | | ?????????????????????### #???## ^^ #???????? | | ????????????????????## @###??# ######???????? | | ???????????????????## ##?## ##????????????? | | ?????????????????### ##?####?????????????? | | ???????????????### #??????????????????? | | ???????????????# g #??????????????????? | | ??????????????# g #??????????????????? | | ???????????# #?????????????????? | | ??????????? % ??????????????? | | ??????????? ## % ???????????? | | ??????????????## ##############??????????? | | ???????????????# ####????????????????????????? | | ???????????????# #????????????????????????????? | | ???????????????# ?????????????????????????????? | | ???????????????## ??????????????????????????????? | | ????????????????## ??????????????????????????????? | | ?????????????????????????????????????????????????? | | ?????????????????????????????????????????????????? | | ?????????????????????????????????????????????????? | | ?????????????????????????????????????????????????? | | ?????????????????????????????????????????????????? | | ?????????????????????????????????????????????????? | | ?????????????????????????????????????????????????? | | ?????????????????????????????????????????????????? | | ?????????????????????????????????????????????????? | | ?????????????????????????????????????????????????? | +----------------------------------------------------+ Best States ------------- Heat Dissipation 25 Energy Generation 14 Energy Capacity 250 Matter Stores 300 Matter Capacity 300 Sight Range 16 Terrain Scan Density 10 Utility Shielding 33 Evasion (%) 40 Recoil Reduction 2 Item Schematics ----------------- None Robot Schematics ------------------ None Fabricated ------------ Nothing Alien Tech Used ----------------- None Achievements -------------- None Challenges ------------ None Game ------ Seed ChargeAmuletMapper Manual? 0 Play Time 00:15:14 Cumulative 6.4 hours Start 2024.11.30 @ 00:39:13 End 2024.11.30 @ 00:56:12 Sessions 1 Manual Loads 0 Difficulty Rogue Special Mode None Game No. 19 Rogue 18 Adventurer 1 Explorer 0 Win Type - Total 0 Types 0/0/0/0/0/0/0/0/0 Lore% 9 Gallery% 12 Achievement% 12 Wizard Run 0 Options --------- Layout 1 ASCII 0 Keyboard 0 Movement Numpad Keybinds 0 Fullscreen 1 Font 24/Smallcaps Map View 50x35 Zoom Use 0% Tactical HUD 0 Map Filters NONE Filters NONE Steam 1 RUN: 41efa148-6433-4fac-9e17-8494865354f0